bitfinex/quotes_ETHUSD_20241207
["timestamp","ask_amount","ask_price","bid_price","bid_amount"]
[1733541494599,0.8169,3987.0,3986.1,1.58048]
[1733541494800,0.10536219,3986.9,3986.1,1.58048]
[1733541495156,0.10536219,3986.9,3985.8,2.35521533]
[1733541495357,0.10536219,3986.9,3986.0,1.58051]
[1733541496460,0.8169,3986.8,3985.4,1.04774371]
[1733541496695,0.9220463,3986.7,3985.5,1.5807]
[1733541496905,0.8169,3986.6,3985.2,1.58081]
[1733541497060,0.8169,3986.5,3984.9,3.25367371]
[1733541497403,0.1051463,3986.7,3985.0,1.58092]
[1733541497404,0.8169,3986.2,3985.0,1.58092]
[1733541497585,0.10475125,3986.1,3985.0,1.58092]
[1733541497800,0.8169,3986.0,3985.1,1.58087]
[1733541498112,0.10460606,3985.9,3985.1,1.58087]
[1733541498274,0.8169,3985.8,3985.1,1.58087]
[1733541498477,0.8169,3985.8,3984.9,0.625]
[1733541498722,0.8169,3985.8,3984.9,2.20595]
[1733541498903,0.10438502,3985.7,3984.9,2.20595]
[1733541501208,0.10438502,3985.7,3985.1,1.58087]
[1733541501416,0.8169,3985.8,3985.1,2.35521533]
[1733541501623,0.8169,3985.8,3985.1,2.380306]
[1733541501821,0.8169,3985.8,3985.5,1.58072]
[1733541502175,0.8169,3986.8,3985.5,2.35521533]
[1733541502712,1.0426431,3987.2,3985.5,2.35521533]
[1733541502713,0.8169,3986.6,3985.5,3.93593533]
[1733541503213,0.8169,3986.4,3985.5,3.93593533]
[1733541503411,0.8169,3986.3,3985.1,2.35521533]
[1733541503713,1.75607,3986.2,3985.0,1.58091]
[1733541503918,1.94216125,3986.1,3984.8,1.581]
[1733541504075,0.8169,3986.0,3984.8,1.581]
[1733541504614,0.8169,3985.8,3984.8,1.581]
[1733541504918,0.8169,3985.6,3984.8,1.581]
[1733541505414,0.10407801,3985.5,3984.8,1.581]
[1733541505772,0.8169,3985.4,3984.8,1.581]
[1733541505978,0.8169,3985.4,3984.7,2.35521533]
[1733541506302,0.8169,3985.4,3984.9,1.58096]
[1733541506516,0.8169,3985.4,3984.7,2.35521533]
[1733541506705,0.8169,3985.4,3984.7,3.93625533]
[1733541506906,0.8169,3985.4,3984.7,0.93625533]
[1733541507118,0.8169,3985.4,3984.6,2.35521533]
[1733541507279,0.10393277,3985.3,3984.6,2.35521533]
[1733541507474,0.8169,3985.4,3984.6,2.35521533]
[1733541507893,0.8169,3985.4,3984.7,1.58104]
[1733541508625,0.8169,3985.4,3984.8,1.581]
[1733541508815,0.8169,3985.4,3984.6,2.35521533]
[1733541509062,0.10393277,3985.3,3984.8,1.58098]
[1733541509229,0.8169,3985.4,3984.6,3.93629533]
[1733541510485,0.8169,3985.4,3984.6,2.35521533]
[1733541510683,0.8169,3985.4,3984.7,1.58101]
[1733541510889,0.10396311,3985.3,3984.7,1.58101]
[1733541511394,0.10396311,3985.3,3984.6,2.35521533]
[1733541511597,0.10396311,3985.3,3984.8,1.581]
[1733541511797,0.10396311,3985.3,3984.9,1.58095]
[1733541512125,0.8169,3985.4,3984.9,1.58095]
[1733541512525,0.10396311,3985.3,3984.9,1.58095]
[1733541512913,0.8169,3985.4,3984.9,1.58095]
[1733541513422,0.10370528,3985.3,3984.9,1.58095]
[1733541513621,0.8169,3985.4,3984.9,1.58095]
[1733541514060,0.8169,3985.4,3985.0,1.58092]
[1733541519464,0.8169,3985.4,3984.8,1.581]
[1733541519633,0.10370528,3985.3,3984.8,1.581]
[1733541519841,0.8169,3985.4,3984.8,1.581]
[1733541520039,0.10370528,3985.3,3984.8,1.581]
[1733541520452,0.8169,3985.4,3984.8,1.581]
[1733541520665,0.10369011,3985.3,3984.8,1.581]
[1733541520861,0.8169,3985.4,3984.8,1.581]
[1733541521040,0.10369011,3985.3,3984.8,1.581]
[1733541521238,0.8169,3985.4,3984.8,1.581]
[1733541521550,0.10369011,3985.3,3984.8,1.581]
[1733541521880,0.8068,3985.2,3984.1,0.1651284]
[1733541522171,0.8068,3985.0,3984.1,0.1651284]
[1733541522371,0.8068,3985.0,3984.3,1.58116]
[1733541522533,0.10314172,3984.9,3984.3,1.58116]
[1733541522994,0.10314172,3984.9,3984.4,1.58114]
[1733541523132,0.8068,3984.8,3984.4,1.58114]
[1733541523336,0.8068,3984.8,3984.1,1.7463784]
[1733541524282,0.8068,3984.6,3984.1,0.1651284]
[1733541524571,0.10188042,3984.5,3984.1,0.1651284]
[1733541525272,0.8068,3984.4,3984.1,0.1651284]
[1733541525634,0.8068,3984.2,3984.1,0.0651284]
[1733541526166,0.90808816,3984.2,3984.1,0.0651284]
[1733541526374,2.66501816,3984.2,3984.1,0.0651284]
[1733541526881,0.90808816,3984.2,3984.1,0.0651284]
[1733541528970,2.66501816,3984.2,3984.1,0.0651284]
[1733541529165,3.06082194,3984.2,3984.1,0.0651284]
[1733541529986,1.30389194,3984.2,3984.1,0.0651284]
[1733541530485,0.90808816,3984.2,3984.1,0.0651284]
[1733541532451,1.7707313,3984.2,3984.1,0.0651284]
[1733541532670,0.90808816,3984.2,3984.1,0.0651284]
[1733541536583,1.45808816,3984.2,3984.1,0.0651284]
[1733541538060,3.21501816,3984.2,3984.1,0.0651284]
[1733541538382,3.77217843,3984.2,3984.1,0.0651284]
[1733541538586,15.58217843,3984.2,3984.1,0.0651284]
[1733541539158,10.82524843,3984.2,3984.1,0.0651284]
[1733541539599,12.58217843,3984.2,3984.1,0.0651284]
[1733541539976,10.82524843,3984.2,3984.1,0.0651284]
[1733541540195,12.58217843,3984.2,3984.1,0.0651284]
[1733541541065,12.78217843,3984.2,3984.1,0.0651284]
[1733541541397,12.78217843,3984.2,3981.9,2.33333]
[1733541541398,0.55,3983.6,3982.4,1.58192]
[1733541541561,0.55,3983.4,3982.4,1.58192]
[1733541541902,0.55,3983.2,3982.4,1.58192]
[1733541542076,0.55,3983.0,3982.4,1.58192]
[1733541542399,0.09324551,3982.9,3982.5,1.58191]
[1733541542918,0.09324551,3982.9,3982.1,0.02511008]
[1733541543129,0.09324551,3982.9,3982.7,1.58183]
[1733541543414,0.55,3983.2,3982.7,1.58183]
[1733541543824,0.55,3983.0,3982.7,1.58183]
[1733541543984,0.55,3983.0,3982.3,1.58197]
[1733541544318,0.8059,3982.9,3982.5,1.58191]
[1733541544532,0.8059,3982.9,3982.0,1.60722008]
[1733541544699,0.8059,3982.9,3982.7,1.58183]
[1733541544877,0.8059,3983.9,3982.0,1.58211]
[1733541545077,0.8059,3983.7,3982.0,1.58211]
[1733541545284,0.09389975,3983.8,3981.6,1.048898]
[1733541545285,0.8059,3983.3,3981.6,1.58227]
[1733541545512,2.35658455,3983.5,3981.7,1.58223]
[1733541545513,0.8059,3982.9,3981.7,1.58223]
[1733541545820,0.55,3982.8,3981.4,0.7512]
[1733541546037,0.6428994,3982.8,3982.1,1.58207]
[1733541546320,0.55,3982.6,3981.4,0.7512]
[1733541546539,0.55,3982.4,3981.7,1.58222]
[1733541546821,0.8059,3982.5,3981.1,0.7512]
[1733541546822,0.55,3982.2,3981.1,0.7512]
[1733541547123,0.8059,3982.3,3981.1,2.33367]
[1733541547482,0.8059,3982.3,3982.1,1.58206]
[1733541547795,0.55,3983.2,3981.7,0.7512]
[1733541547995,0.55,3983.0,3981.7,2.3334]
[1733541548198,0.8059,3982.9,3981.7,2.3334]
[1733541548404,0.8059,3982.9,3981.4,0.7512]
[1733541548405,0.8059,3982.7,3981.4,0.7512]
[1733541548606,0.55,3982.6,3982.0,1.58211]
[1733541548807,0.64253113,3982.6,3981.4,0.7512]
[1733541549225,0.64253113,3982.6,3981.7,1.58223]
[1733541549382,0.64253113,3982.6,3982.3,1.58199]
[1733541549579,0.70933106,3982.6,3982.3,1.58199]
[1733541549815,0.09243813,3982.5,3982.3,1.58199]
[1733541551161,0.09243813,3982.5,3982.0,1.58209]
[1733541551850,0.55,3982.4,3982.0,1.58209]
[1733541552016,0.8059,3982.3,3981.8,1.58219]
[1733541552217,0.89819267,3982.3,3981.8,1.58219]
[1733541552456,1.05894504,3982.3,3981.8,1.58219]
[1733541553020,1.05894504,3982.3,3981.9,1.58214]
[1733541553519,1.05894504,3982.3,3981.7,1.58221]
[1733541554216,1.05894504,3982.3,3981.3,0.7512]
[1733541554217,0.55,3982.2,3981.5,1.58229]
[1733541554456,0.8059,3982.0,3981.5,1.58229]
[1733541554847,0.09201694,3981.9,3981.5,1.58229]
[1733541555154,0.09201694,3981.9,3980.8,0.7512]
[1733541555359,0.09201694,3981.9,3981.7,1.58223]
[1733541555564,0.55,3982.2,3981.8,1.58218]
[1733541555715,0.68179,3982.2,3981.8,1.58218]
[1733541555920,0.09186354,3982.1,3981.8,1.58218]
[1733541556647,0.09186354,3982.1,3981.9,1.58213]
[1733541557024,0.7679,3982.3,3981.9,1.58213]
[1733541558745,0.7679,3982.3,3981.4,1.58235]
[1733541558746,0.7679,3982.3,3982.0,1.58211]
[1733541559931,0.7679,3982.3,3981.9,0.01533887]
[1733541561447,0.09198188,3982.2,3981.9,0.01533887]
[1733541561850,0.7679,3982.3,3981.9,0.01533887]
[1733541562265,0.09198188,3982.2,3981.9,0.01533887]
[1733541562434,0.7679,3982.3,3981.9,0.01533887]
[1733541562629,0.64198188,3982.2,3981.9,0.01533887]
[1733541562828,0.78297007,3982.2,3981.9,0.01533887]
[1733541563764,0.7679,3982.1,3981.9,0.01533887]
[1733541563960,0.64198188,3982.2,3981.9,0.01533887]
[1733541564159,0.09183641,3982.0,3981.9,0.01533887]
[1733541564365,0.55,3982.5,3981.9,0.01533887]
[1733541564590,0.09183641,3982.0,3981.9,0.01533887]
[1733541565198,0.55,3982.3,3981.9,0.01533887]
[1733541565364,0.09183641,3982.0,3981.9,0.01533887]
[1733541565568,0.55,3982.3,3981.9,0.01533887]
[1733541565774,0.09183641,3982.0,3981.9,0.01533887]
[1733541565973,0.55,3982.3,3981.9,0.01533887]
[1733541566177,0.09183641,3982.0,3981.9,0.01533887]
[1733541566650,0.7679,3982.0,3981.9,0.01533887]
[1733541566856,0.85973641,3982.0,3981.9,0.01533887]
[1733541568265,1.55071005,3982.0,3981.9,0.01533887]
[1733541570305,3.30862005,3982.0,3981.9,0.01533887]
[1733541571317,1.55071005,3982.0,3981.9,0.01533887]
[1733541572098,3.30862005,3982.0,3981.9,0.01533887]
[1733541572297,1.55071005,3982.0,3981.9,0.01533887]
[1733541573301,0.09183641,3982.0,3981.9,0.01533887]
[1733541573502,0.55,3982.3,3981.9,0.01533887]
[1733541573742,0.09083188,3982.2,3981.9,0.01533887]
[1733541574113,0.55,3982.3,3981.9,0.01533887]
[1733541574435,0.09083188,3982.2,3981.4,1.58235]
[1733541574612,0.09083188,3982.2,3981.5,1.58227]
[1733541574937,0.09083188,3982.2,3981.3,0.8272]
[1733541575444,0.09083188,3982.2,3981.4,1.58235]
[1733541575649,0.09083188,3982.2,3981.3,0.8272]
[1733541575802,0.09083188,3982.2,3981.5,1.58231]
[1733541576005,0.09083188,3982.2,3981.6,1.58227]
[1733541577256,0.55,3982.1,3981.3,0.8272]
[1733541577406,0.55,3981.9,3981.1,1.58245]
[1733541577926,0.55,3981.9,3981.2,1.58243]
[1733541578245,0.55,3981.9,3980.9,0.8272]
[1733541578246,0.13278,3981.8,3980.9,0.8272]
[1733541578444,0.7778,3981.6,3980.9,1.58255]
[1733541578649,0.7778,3981.6,3980.7,1.58263]
[1733541578809,0.09078884,3981.5,3980.6,1.876098]
[1733541579154,0.7778,3981.6,3980.6,0.8272]
[1733541579520,0.7778,3982.6,3980.9,0.8272]
[1733541579845,0.64151626,3982.5,3981.4,0.8272]
[1733541580345,0.55,3982.3,3981.4,0.8272]
[1733541580733,0.09103969,3982.2,3981.4,0.8272]
[1733541580938,0.09103969,3982.2,3981.6,1.58227]
[1733541581137,0.23292366,3982.2,3981.6,1.58227]
[1733541581542,0.09103969,3982.2,3981.4,0.8272]
[1733541581736,0.09103969,3982.2,3981.9,1.58213]
[1733541581924,0.55,3982.3,3981.9,1.58213]
[1733541582137,0.24385991,3982.4,3982.0,1.58211]
[1733541582333,0.08600103,3982.2,3982.0,1.58211]
[1733541582621,0.24385991,3982.4,3982.0,1.58211]
[1733541583025,0.08642337,3982.3,3982.0,1.58211]
[1733541584125,0.08642337,3982.3,3981.8,1.58219]
[1733541584423,0.24385991,3982.4,3981.4,1.876098]
[1733541584742,0.24385991,3982.4,3982.0,1.58211]
[1733541584743,0.08655509,3982.3,3982.0,1.58211]
[1733541585148,0.24385991,3982.4,3982.0,1.58209]
[1733541585325,0.7778,3982.7,3981.7,0.8272]
[1733541585526,0.7778,3983.5,3981.7,0.8272]
[1733541585825,1.09214359,3983.4,3982.5,1.5819]
[1733541586027,1.09214359,3983.4,3981.7,0.8272]
[1733541586028,0.18699436,3983.3,3981.7,0.8272]
[1733541586226,0.08740559,3983.4,3982.4,0.8272]
[1733541586470,0.7778,3983.5,3982.4,0.8272]
[1733541586869,0.7778,3983.5,3982.8,1.58176]
[1733541587654,0.7778,3983.5,3982.3,1.58198]
[1733541587863,0.55,3983.2,3982.3,1.58198]
[1733541588076,1.3278,3983.1,3982.3,1.58198]
[1733541588367,1.41541293,3983.1,3982.3,1.58198]
[1733541589379,0.08761293,3983.1,3982.9,1.58175]
[1733541589580,0.08761293,3983.1,3982.6,1.58187]
[1733541589779,0.7778,3983.3,3982.4,1.8777894]
[1733541589780,0.7778,3983.3,3982.4,0.8272]
[1733541590639,0.55,3983.2,3982.4,0.8272]
[1733541590958,0.55,3983.2,3982.5,1.58191]
[1733541591638,0.08316805,3983.1,3982.5,1.58191]
[1733541592077,0.55,3983.2,3982.5,1.58191]
[1733541592448,0.08316805,3983.1,3982.8,1.58178]
[1733541592764,0.55,3983.2,3982.8,1.58178]
[1733541592958,0.55,3983.2,3982.4,1.8777894]
[1733541592959,0.7778,3983.3,3982.4,1.8777894]
[1733541593270,0.7778,3983.3,3982.8,1.58178]
[1733541593271,0.08311235,3983.1,3982.8,1.58178]
[1733541593480,0.08318505,3983.2,3982.8,1.58178]
[1733541593676,0.7778,3983.3,3982.4,1.8777894]
[1733541593677,0.7778,3983.3,3982.9,1.58172]
[1733541594481,1.004611,3984.0,3983.2,1.58163]
[1733541594667,0.7979,3983.9,3983.2,1.58163]
[1733541595177,0.07942571,3983.8,3983.2,1.58163]
[1733541595553,0.7979,3983.9,3983.2,1.58163]
[1733541595750,0.55,3983.8,3983.2,1.58163]
[1733541595956,0.62956241,3983.8,3983.2,1.58163]
[1733541596152,0.62956241,3983.8,3983.1,1.58168]
[1733541596396,0.62956241,3983.8,3983.2,1.58162]
[1733541596596,0.62956241,3983.8,3983.3,1.58158]
[1733541596904,0.62956241,3983.8,3983.1,1.58167]
[1733541597197,0.07956241,3983.8,3983.1,1.58167]
[1733541597493,0.07956241,3983.8,3983.0,0.7865]
[1733541598000,0.7979,3983.9,3983.0,0.7865]
[1733541598163,0.7979,3983.9,3983.2,1.58162]
[1733541599696,0.07995221,3983.8,3983.2,1.58162]
[1733541599999,0.07995221,3983.8,3983.0,0.7865]
[1733541600000,0.07995221,3983.8,3983.0,2.3682]
[1733541601608,0.07995221,3983.8,3982.8,1.58176]
[1733541601763,0.07995221,3983.8,3982.9,1.58175]
[1733541604492,0.8298,3983.7,3982.4,0.7639]
[1733541604800,0.8298,3983.3,3982.1,1.8144894]
[1733541605010,0.8298,3982.8,3981.8,4.17107395]
[1733541605306,0.8298,3982.8,3981.8,3.12048455]
[1733541605464,0.8298,3982.8,3981.5,1.0505894]
[1733541605465,0.55,3982.5,3981.5,1.0505894]
[1733541605805,0.8298,3982.4,3981.4,5.75341395]
[1733541605986,0.90821294,3982.4,3981.1,1.58244]
[1733541606377,0.8298,3982.2,3981.0,2.35658455]
[1733541606561,0.8298,3982.1,3981.0,2.35658455]
[1733541607074,0.07749909,3982.0,3980.9,1.58255]
[1733541607258,1.3798,3981.8,3980.6,3.35658455]
[1733541607462,1.3798,3981.8,3980.6,1.0]
[1733541607463,3.13781,3981.8,3980.6,1.0]
[1733541607681,0.07727072,3981.7,3980.6,1.0]
[1733541608289,1.83532072,3981.7,3980.6,1.0]
[1733541608492,0.07727072,3981.7,3980.6,1.0]
[1733541608987,0.07727072,3981.7,3980.6,2.58266]
[1733541610002,0.07727072,3981.7,3980.6,1.0]
[1733541610186,0.07727072,3981.7,3980.8,1.58259]
[1733541610395,1.3798,3981.8,3980.6,1.0]
[1733541610610,0.07648375,3981.6,3980.6,2.58267]
[1733541610908,1.3798,3981.8,3980.6,2.58267]
[1733541611067,0.07641099,3981.5,3980.6,2.58267]
[1733541611268,0.0765565,3981.7,3980.6,2.58267]
[1733541611492,0.07633822,3981.4,3980.6,1.0]
[1733541611798,0.07626546,3981.3,3980.7,1.58263]
[1733541612173,1.3798,3981.8,3980.7,1.58263]
[1733541612361,0.07619269,3981.2,3980.7,1.58263]
[1733541612564,1.3798,3981.8,3980.7,1.58263]
[1733541612980,0.0765565,3981.7,3980.7,1.58263]
[1733541613579,0.0765565,3981.7,3980.6,1.0]
[1733541614000,0.7635,3981.6,3980.6,1.0]
[1733541614393,0.07605124,3981.5,3980.6,1.0]
[1733541614597,0.39080936,3981.5,3980.6,1.0]
[1733541614798,0.7635,3981.4,3980.6,1.0]
[1733541615178,0.83939049,3981.3,3980.6,1.0]
[1733541619785,0.83939049,3981.3,3980.6,2.58266]
[1733541620487,0.83939049,3981.3,3981.0,1.58249]
[1733541620713,0.07589049,3981.3,3981.1,1.58247]
[1733541620912,0.7635,3981.7,3981.1,1.58247]
[1733541621226,0.07588074,3981.6,3981.1,1.58247]
[1733541621719,0.07588074,3981.6,3980.6,1.7733]
[1733541622185,0.07588074,3981.6,3980.8,1.58256]
[1733541622692,0.07588074,3981.6,3980.6,1.7733]
[1733541622922,0.07588074,3981.6,3980.9,1.58253]
[1733541623487,0.7635,3981.7,3981.0,1.58251]
[1733541624040,0.07592125,3981.6,3981.0,1.58251]
[1733541624230,0.07592125,3981.6,3980.6,1.7733]
[1733541624521,0.7635,3981.7,3981.2,1.58242]
[1733541625745,0.7635,3981.7,3980.7,1.58263]
[1733541625948,0.7635,3981.7,3980.8,1.58259]
[1733541626153,0.7635,3981.7,3980.7,0.7733]
[1733541626445,0.7635,3982.0,3981.7,1.58223]
[1733541626804,0.07639798,3981.9,3981.8,1.58219]
[1733541627207,0.07639798,3981.9,3981.4,0.7733]
[1733541627208,0.7635,3982.3,3981.9,1.58214]
[1733541627428,0.7635,3982.3,3982.1,1.58207]
[1733541627850,0.7635,3983.2,3982.1,1.58207]
[1733541628144,0.7635,3983.2,3981.5,0.02511259]
[1733541628145,0.252083,3983.1,3981.5,0.02511259]
[1733541628351,0.7635,3983.2,3981.7,2.35658455]
[1733541628547,0.7635,3983.2,3981.8,0.7733]
[1733541628718,0.7635,3983.2,3982.5,1.5819]
[1733541629243,0.7635,3983.2,3982.0,1.58211]
[1733541629244,0.7635,3983.2,3982.7,1.58182]
[1733541629451,0.07773167,3983.1,3982.7,1.58182]
[1733541629612,0.7635,3983.2,3982.7,1.58182]
[1733541629946,0.7635,3983.2,3982.8,1.58179]
[1733541630144,0.7635,3984.1,3982.8,1.58177]
[1733541630355,0.07847701,3984.0,3982.6,1.58188]
[1733541630524,0.07847701,3984.0,3983.1,1.58168]
[1733541631057,0.07847701,3984.0,3982.5,2.35658455]
[1733541631360,0.07847701,3984.0,3982.7,1.58181]
[1733541631537,0.7635,3983.9,3982.9,1.58175]
[1733541631715,0.7635,3983.9,3983.0,1.5817]
[1733541631910,0.07833166,3983.8,3983.0,1.5817]
[1733541632418,0.13057747,3983.8,3983.0,1.5817]
[1733541632744,0.8227,3983.6,3982.7,1.58182]
[1733541633041,0.55,3983.7,3982.7,1.58182]
[1733541633042,0.13074362,3983.5,3982.7,1.58182]
[1733541633259,0.13074362,3983.5,3981.6,4.0505894]
[1733541633260,0.13074362,3983.5,3983.1,1.58165]
[1733541633424,0.8227,3984.0,3983.1,1.58165]
[1733541633633,0.8227,3984.0,3983.4,1.58156]
[1733541633823,0.1238267,3983.9,3983.3,1.58159]
[1733541634024,0.10848783,3983.9,3983.3,1.58159]
[1733541634926,0.10848783,3983.9,3983.2,1.5816]
[1733541635145,1.75721,3983.6,3982.3,1.58199]
[1733541635366,0.94538907,3983.5,3982.1,1.58207]
[1733541635663,0.94538907,3983.5,3982.0,2.35658455]
[1733541635664,0.8227,3983.4,3982.0,2.35658455]
[1733541635875,0.8227,3983.4,3982.6,1.58187]
[1733541636174,0.8227,3983.4,3982.0,2.35658455]
[1733541636340,0.8227,3983.2,3982.2,1.58203]
[1733541636538,0.12251493,3983.1,3982.2,1.58203]
[1733541636925,0.12251493,3983.1,3982.0,3.93867455]
[1733541637127,0.8227,3983.0,3982.0,3.93867455]
[1733541637626,0.12212909,3982.9,3982.0,3.93867455]
[1733541638063,0.8227,3983.0,3982.0,3.93867455]
[1733541638425,0.12212909,3982.9,3982.1,1.58206]
[1733541638625,0.12212909,3982.9,3982.0,2.35658455]
[1733541639248,0.12212909,3982.9,3982.0,3.93869455]
[1733541639452,0.12212909,3982.9,3982.1,1.58206]
[1733541640228,0.12212909,3982.9,3982.2,1.58203]
[1733541640527,0.12212909,3982.9,3982.5,1.5819]
[1733541640764,0.8227,3983.0,3982.5,1.5819]
[1733541641063,0.12265598,3982.9,3982.5,1.5819]
[1733541641443,0.8227,3983.0,3982.5,1.5819]
[1733541641636,0.8227,3983.0,3982.0,3.17538455]
[1733541641866,0.12272688,3982.9,3982.0,3.17538455]
[1733541642262,0.8227,3983.0,3982.0,3.93869455]
[1733541642770,0.12272688,3982.9,3982.0,3.93869455]
[1733541642941,0.8227,3983.0,3982.0,3.93869455]
[1733541643349,0.8227,3983.0,3981.6,3.17538455]
[1733541643555,1.7577,3982.5,3981.2,1.58243]
[1733541643752,0.8227,3982.3,3981.0,2.35658455]
[1733541643953,0.8227,3982.2,3981.0,2.35658455]
[1733541644152,0.94486624,3982.2,3981.1,1.58246]
[1733541647080,0.94486624,3982.2,3981.2,1.58243]
[1733541648079,0.8227,3982.1,3980.9,6.93911455]
[1733541648292,1.75787,3982.1,3980.9,6.93911455]
[1733541648456,0.8227,3981.9,3980.9,5.35658455]
[1733541648657,0.8227,3981.9,3981.0,4.5825]
[1733541649194,0.12143986,3981.8,3981.0,3.0]
[1733541649406,0.12143986,3981.8,3980.9,2.35658455]
[1733541649563,0.8227,3981.9,3981.0,3.0]
[1733541649889,0.12143986,3981.8,3981.1,1.58245]
[1733541650888,0.8227,3981.7,3980.7,3.0]
[1733541651092,0.8227,3981.7,3980.7,1.75847]
[1733541651300,0.12129698,3981.6,3980.7,1.75847]
[1733541651667,0.12129698,3981.6,3980.6,1.0]
[1733541652254,0.12129698,3981.6,3981.0,1.75834]
[1733541652765,0.8227,3981.7,3981.2,1.75823]
[1733541653154,0.7702,3982.7,3981.3,2.35658455]
[1733541653392,0.11718562,3982.6,3981.4,0.02511409]
[1733541654000,0.11718562,3982.6,3981.7,2.35658455]
[1733541654159,0.11718562,3982.6,3982.1,2.35658455]
[1733541654355,0.11718562,3982.6,3982.5,1.75768]
[1733541654604,0.7702,3983.1,3982.5,1.75768]
[1733541655559,0.7702,3983.1,3982.7,1.75759]
[1733541656474,0.7702,3983.1,3982.2,3.0]
[1733541656872,0.7702,3983.1,3982.1,5.35658455]
[1733541657218,0.11881636,3983.0,3982.3,1.75777]
[1733541658585,0.11881636,3983.0,3981.7,1.75804]
[1733541658586,1.3202,3982.8,3981.7,1.75804]
[1733541658795,0.11860217,3982.7,3981.7,1.75804]
[1733541660080,1.3202,3982.8,3981.7,1.75804]
[1733541660276,1.3202,3982.8,3981.3,3.0]
[1733541660515,0.11860217,3982.7,3981.8,1.75797]
[1733541660994,0.11860217,3982.7,3981.3,3.0]
[1733541661519,0.11860217,3982.7,3981.2,5.35658455]
[1733541661724,1.3202,3982.8,3981.9,1.75793]
[1733541662078,0.11860217,3982.7,3981.9,1.75793]
[1733541663120,0.11860217,3982.7,3981.6,5.35658455]
[1733541663321,0.11860217,3982.7,3982.3,1.75776]
[1733541663539,0.7702,3982.8,3982.3,1.75776]
[1733541663887,0.11837378,3982.7,3982.5,1.75767]
[1733541664086,0.7702,3982.8,3982.6,1.75764]
[1733541664426,1.75711,3983.8,3982.6,1.75764]
[1733541664427,0.7702,3983.7,3982.6,1.75764]
[1733541664604,0.7702,3983.7,3982.1,3.0]
[1733541664938,0.11901626,3983.6,3982.8,1.75751]
[1733541665223,0.11901626,3983.6,3982.5,3.0]
[1733541665423,0.11901626,3983.6,3982.7,1.7576]
[1733541665628,0.7702,3983.7,3982.7,1.75756]
[1733541666229,0.7702,3983.2,3982.1,3.0]
[1733541666527,0.7702,3983.2,3982.2,1.75782]
[1733541666711,0.66896894,3983.1,3982.3,1.75777]
[1733541666956,0.55,3983.1,3982.3,1.75777]
[1733541667231,0.7702,3983.2,3982.0,2.35658455]
[1733541667434,0.11889755,3983.0,3982.0,2.35658455]
[1733541667641,0.7702,3983.2,3982.6,1.75763]
[1733541667836,0.7702,3983.2,3982.3,1.75773]
[1733541667994,0.7702,3983.2,3981.8,6.40452264]
[1733541668336,0.55,3983.1,3982.3,1.75777]
[1733541668834,0.55,3983.1,3981.9,3.0]
[1733541668835,0.11886205,3983.0,3981.9,3.0]
[1733541669000,0.7702,3982.9,3981.8,3.0]
[1733541669343,0.11871926,3982.8,3981.8,3.0]
[1733541669827,0.7702,3982.9,3981.8,3.0]
[1733541670231,0.7702,3982.9,3982.0,1.7579]
[1733541670541,0.11861265,3982.8,3981.5,4.04793809]
[1733541670695,0.11861265,3982.8,3981.9,1.75794]
[1733541672332,0.7702,3982.7,3981.5,3.0]
[1733541672627,0.7702,3982.7,3981.8,1.75798]
[1733541673008,0.11814002,3982.6,3981.8,1.75798]
[1733541673340,0.11814002,3982.6,3981.5,4.04793809]
[1733541673524,0.7689,3982.5,3981.5,4.04793809]
[1733541673728,0.7689,3982.3,3981.3,1.7582]
[1733541674113,0.11776808,3982.2,3981.3,1.7582]
[1733541675023,0.7689,3982.3,3981.3,1.7582]
[1733541675394,0.11740731,3982.1,3981.3,1.7582]
[1733541675703,0.7689,3982.3,3981.3,1.7582]
[1733541676025,0.11733588,3982.0,3981.3,1.7582]
[1733541676231,0.7689,3982.3,3981.3,1.7582]
[1733541676630,0.7689,3982.3,3981.1,3.0]
[1733541676932,0.8862569,3982.2,3981.0,4.75831]
[1733541677096,0.8862569,3982.2,3981.0,1.75831]
[1733541677408,0.8862569,3982.2,3981.1,1.75829]
[1733541677793,0.7689,3982.1,3980.9,4.75836]
[1733541678028,0.7689,3981.9,3980.9,4.75836]
[1733541678247,0.7689,3981.9,3980.9,1.75836]
[1733541678434,0.11698491,3981.8,3980.9,1.75836]
[1733541679038,0.11698491,3981.8,3981.0,1.75833]
[1733541679237,0.7689,3981.9,3981.1,1.75829]
[1733541679461,0.7689,3981.9,3980.9,1.75839]
[1733541681026,0.11698491,3981.8,3980.9,1.75839]
[1733541682518,0.7689,3981.7,3980.6,2.75852]
[1733541682716,0.26438849,3981.6,3980.6,2.75852]
[1733541682912,0.55,3981.4,3980.6,1.0]
[1733541683115,0.7817,3981.3,3980.6,1.0]
[1733541683315,0.89787075,3981.3,3980.6,1.0]
[1733541689974,0.89787075,3981.3,3980.7,1.75847]
[1733541690757,0.89787075,3981.3,3980.6,1.0]
[1733541693067,0.55,3981.0,3980.6,1.0]
[1733541693290,0.8227,3980.9,3980.6,1.0]
[1733541693475,0.93823452,3980.9,3980.6,1.0]
[1733541698907,0.8227,3980.7,3980.6,1.0]
[1733541699110,1.69736345,3980.7,3980.6,1.0]
[1733541699408,1.48787823,3980.7,3980.6,1.0]
[1733541703401,0.93787823,3980.7,3980.6,1.0]
[1733541703701,0.11517823,3980.7,3980.6,2.75852]
[1733541703926,0.7721,3981.0,3980.8,1.75841]
[1733541704138,0.11485312,3980.7,3980.6,1.0]
[1733541704307,0.7721,3982.4,3981.4,1.75815]
[1733541704649,0.7721,3982.4,3981.5,1.75808]
[1733541704939,0.7721,3982.2,3981.5,1.75808]
[1733541705342,0.11305442,3982.1,3981.5,1.75808]
[1733541705643,0.11305442,3982.1,3980.6,1.0]
[1733541705644,0.7721,3982.0,3981.3,1.75818]
[1733541706141,0.11353205,3981.9,3981.3,1.75818]
[1733541706633,0.11353205,3981.9,3981.5,1.7581]